[Event "Titled Tuesday Blitz January 10 Early 2023"]
[White "Bacrot, Etienne"]
[Black "Xu, Yi"]
[WhiteFideId "605506"]
[BlackFideId "8605564"]
[WhiteElo "2667"]
[BlackElo "2527"]
[Result "1/2-1/2"]
[Round "06"]
[TimeControl "180+2"]
[Date "2023.01.10"]
[WhiteClock "0:01:15"]
[BlackClock "0:01:31"]

1. e4 {[%clk 0:03:00]}  e5 {[%clk 0:03:00]} 2. Nf3 {[%clk 0:03:00]}  Nf6 {[%clk 0:03:00]} 3. Nxe5 {[%clk 0:02:57]}  d6 {[%clk 0:03:01]} 4. Nf3 {[%clk 0:02:57]}  Nxe4 {[%clk 0:03:01]} 5. d4 {[%clk 0:02:57]}  d5 {[%clk 0:03:01]} 6. Bd3 {[%clk 0:02:57]}  Bd6 {[%clk 0:02:56]} 7. O-O {[%clk 0:02:58]}  O-O {[%clk 0:02:56]} 8. Nbd2 {[%clk 0:02:53]}  Bf5 {[%clk 0:02:32]} 9. Re1 {[%clk 0:02:50]}  Re8 {[%clk 0:02:21]} 10. Nf1 {[%clk 0:02:26]}  c6 {[%clk 0:02:14]} 11. Ng3 {[%clk 0:02:17]}  Nxg3 {[%clk 0:02:06]} 12. Rxe8+ {[%clk 0:02:13]}  Qxe8 {[%clk 0:02:06]} 13. hxg3 {[%clk 0:02:12]}  Bxd3 {[%clk 0:02:06]} 14. Qxd3 {[%clk 0:02:13]}  Na6 {[%clk 0:02:07]} 15. Bd2 {[%clk 0:02:10]}  Nc7 {[%clk 0:02:06]} 16. Qb3 {[%clk 0:02:02]}  Rb8 {[%clk 0:01:46]} 17. Bb4 {[%clk 0:01:55]}  Qf8 {[%clk 0:01:42]} 18. Bxd6 {[%clk 0:01:45]}  Qxd6 {[%clk 0:01:43]} 19. Re1 {[%clk 0:01:45]}  f6 {[%clk 0:01:41]} 20. Nd2 {[%clk 0:01:32]}  b6 {[%clk 0:01:37]} 21. c4 {[%clk 0:01:24]}  Re8 {[%clk 0:01:36]} 22. Rxe8+ {[%clk 0:01:16]}  Nxe8 {[%clk 0:01:36]} 23. cxd5 {[%clk 0:01:16]}  Qxd5 {[%clk 0:01:31]} 24. Qxd5+ {[%clk 0:01:14]}  cxd5 {[%clk 0:01:31]} 25. g4 {[%clk 0:01:15]} 1/2-1/2


[Site "https://www.chess.com"]

[Event "Titled Tuesday Blitz January 10 Early 2023"]
[White "Mikhailovsky, Vladimir"]
[Black "Salem, A.R. Saleh"]
[WhiteFideId "34105414"]
[BlackFideId "9301348"]
[WhiteElo "2215"]
[BlackElo "2677"]
[Result "0-1"]
[Round "06"]
[TimeControl "180+2"]
[Date "2023.01.10"]
[WhiteClock "0:01:35"]
[BlackClock "0:01:38"]

1. e4 {[%clk 0:03:00]}  c5 {[%clk 0:03:00]} 2. c3 {[%clk 0:03:00]}  Nf6 {[%clk 0:02:53]} 3. e5 {[%clk 0:03:00]}  Nd5 {[%clk 0:02:54]} 4. Nf3 {[%clk 0:03:01]}  d6 {[%clk 0:02:54]} 5. Bb5+ {[%clk 0:03:01]}  Bd7 {[%clk 0:02:52]} 6. Bc4 {[%clk 0:03:01]}  Nb6 {[%clk 0:02:48]} 7. Bxf7+ {[%clk 0:03:01]}  Kxf7 {[%clk 0:02:48]} 8. e6+ {[%clk 0:03:02]}  Kg8 {[%clk 0:02:44]} 9. exd7 {[%clk 0:03:01]}  Qxd7 {[%clk 0:02:45]} 10. O-O {[%clk 0:03:01]}  e5 {[%clk 0:02:38]} 11. Re1 {[%clk 0:02:57]}  c4 {[%clk 0:02:09]} 12. b3 {[%clk 0:02:28]}  Nc6 {[%clk 0:01:52]} 13. bxc4 {[%clk 0:02:17]}  Nxc4 {[%clk 0:01:51]} 14. d3 {[%clk 0:02:08]}  Nb6 {[%clk 0:01:51]} 15. d4 {[%clk 0:02:02]}  Re8 {[%clk 0:01:49]} 16. a4 {[%clk 0:01:43]}  e4 {[%clk 0:01:42]} 17. Ng5 {[%clk 0:01:35]}  d5 {[%clk 0:01:42]} 18. Qd3 {[%clk 0:01:35]}  exd3 {[%clk 0:01:38]} 0-1


[Site "https://www.chess.com"]

[Event "Titled Tuesday Blitz January 10 Early 2023"]
[White "Paravyan, David"]
[Black "Lagarde, Maxime"]
[WhiteFideId "4194985"]
[BlackFideId "662399"]
[WhiteElo "2601"]
[BlackElo "2579"]
[Result "1-0"]
[Round "06"]
[TimeControl "180+2"]
[Date "2023.01.10"]
[WhiteClock "0:00:03"]
[BlackClock "0:00:26"]

1. e4 {[%clk 0:03:00]}  Nc6 {[%clk 0:03:00]} 2. Nf3 {[%clk 0:03:00]}  e5 {[%clk 0:03:00]} 3. Bb5 {[%clk 0:03:00]}  a6 {[%clk 0:03:00]} 4. Ba4 {[%clk 0:03:00]}  Nf6 {[%clk 0:03:01]} 5. O-O {[%clk 0:03:00]}  Be7 {[%clk 0:03:01]} 6. d3 {[%clk 0:03:00]}  d6 {[%clk 0:02:59]} 7. c3 {[%clk 0:02:59]}  O-O {[%clk 0:02:59]} 8. Re1 {[%clk 0:03:00]}  b5 {[%clk 0:02:57]} 9. Bc2 {[%clk 0:02:59]}  a5 {[%clk 0:02:54]} 10. a4 {[%clk 0:02:58]}  b4 {[%clk 0:02:53]} 11. Nbd2 {[%clk 0:02:53]}  Rb8 {[%clk 0:02:52]} 12. Bb3 {[%clk 0:02:51]}  Be6 {[%clk 0:02:48]} 13. Bc4 {[%clk 0:02:50]}  Qc8 {[%clk 0:02:35]} 14. h3 {[%clk 0:02:47]}  h6 {[%clk 0:02:34]} 15. Qc2 {[%clk 0:02:45]}  Rd8 {[%clk 0:02:29]} 16. Nh2 {[%clk 0:02:12]}  Bf8 {[%clk 0:02:27]} 17. Nhf1 {[%clk 0:02:09]}  d5 {[%clk 0:02:24]} 18. exd5 {[%clk 0:02:09]}  Bxd5 {[%clk 0:02:24]} 19. Ne3 {[%clk 0:01:59]}  Bxc4 {[%clk 0:02:21]} 20. Nexc4 {[%clk 0:01:46]}  Qf5 {[%clk 0:02:04]} 21. Ne4 {[%clk 0:01:43]}  Nd5 {[%clk 0:02:02]} 22. Ng3 {[%clk 0:01:39]}  Qf6 {[%clk 0:01:47]} 23. Bd2 {[%clk 0:01:39]}  Rd7 {[%clk 0:01:41]} 24. Re4 {[%clk 0:01:34]}  Rbd8 {[%clk 0:01:40]} 25. Rae1 {[%clk 0:01:33]}  Nb6 {[%clk 0:01:30]} 26. Nxb6 {[%clk 0:00:53]}  cxb6 {[%clk 0:01:29]} 27. R1e3 {[%clk 0:00:49]}  Bc5 {[%clk 0:01:23]} 28. Rf3 {[%clk 0:00:49]}  Qe6 {[%clk 0:01:22]} 29. Rg4 {[%clk 0:00:41]}  Kf8 {[%clk 0:01:12]} 30. Nf5 {[%clk 0:00:37]}  b3 {[%clk 0:00:59]} 31. Qb1 {[%clk 0:00:34]}  f6 {[%clk 0:00:59]} 32. d4 {[%clk 0:00:21]}  exd4 {[%clk 0:00:54]} 33. Nxg7 {[%clk 0:00:22]}  Rxg7 {[%clk 0:00:44]} 34. Bxh6 {[%clk 0:00:22]}  d3 {[%clk 0:00:34]} 35. Bxg7+ {[%clk 0:00:18]}  Kf7 {[%clk 0:00:30]} 36. Rxf6+ {[%clk 0:00:15]}  Qxf6 {[%clk 0:00:30]} 37. Bxf6 {[%clk 0:00:15]}  Kxf6 {[%clk 0:00:31]} 38. Rf4+ {[%clk 0:00:06]}  Ke6 {[%clk 0:00:30]} 39. Qd1 {[%clk 0:00:03]}  Ne5 {[%clk 0:00:29]} 40. g3 {[%clk 0:00:02]}  d2 {[%clk 0:00:29]} 41. Kg2 {[%clk 0:00:02]}  Rd3 {[%clk 0:00:28]} 42. Re4 {[%clk 0:00:02]}  Kd5 {[%clk 0:00:25]} 43. Rxe5+ {[%clk 0:00:02]}  Kxe5 {[%clk 0:00:26]} 44. Qe2+ {[%clk 0:00:03]}  Re3 {[%clk 0:00:26]} 45. fxe3 {[%clk 0:00:03]} 1-0


[Site "https://www.chess.com"]

[Event "Titled Tuesday Blitz January 10 Early 2023"]
[White "Urazayev, Arystanbek"]
[Black "Gholami Orimi, Mahdi"]
[WhiteFideId "13709810"]
[BlackFideId "12558486"]
[WhiteElo "2460"]
[BlackElo "2420"]
[Result "1-0"]
[Round "06"]
[TimeControl "180+2"]
[Date "2023.01.10"]
[WhiteClock "0:00:23"]
[BlackClock "0:00:02"]

1. e4 {[%clk 0:03:00]}  c5 {[%clk 0:02:59]} 2. Nf3 {[%clk 0:03:01]}  d6 {[%clk 0:02:58]} 3. d4 {[%clk 0:03:01]}  cxd4 {[%clk 0:02:59]} 4. Nxd4 {[%clk 0:03:02]}  Nf6 {[%clk 0:03:00]} 5. Nc3 {[%clk 0:03:03]}  Nc6 {[%clk 0:03:00]} 6. Bg5 {[%clk 0:03:02]}  e6 {[%clk 0:02:59]} 7. Qd2 {[%clk 0:03:03]}  a6 {[%clk 0:02:53]} 8. Nxc6 {[%clk 0:03:02]}  bxc6 {[%clk 0:02:52]} 9. O-O-O {[%clk 0:03:03]}  Be7 {[%clk 0:02:47]} 10. Bxf6 {[%clk 0:03:03]}  gxf6 {[%clk 0:02:48]} 11. Bc4 {[%clk 0:03:03]}  Bb7 {[%clk 0:02:46]} 12. Kb1 {[%clk 0:02:58]}  Qc7 {[%clk 0:02:47]} 13. Rhe1 {[%clk 0:02:50]}  O-O-O {[%clk 0:02:46]} 14. Qe2 {[%clk 0:02:45]}  Qa5 {[%clk 0:02:42]} 15. Bb3 {[%clk 0:02:35]}  h5 {[%clk 0:02:41]} 16. f4 {[%clk 0:02:36]}  Rh7 {[%clk 0:02:33]} 17. f5 {[%clk 0:02:30]}  e5 {[%clk 0:02:32]} 18. Rd3 {[%clk 0:02:18]}  h4 {[%clk 0:02:22]} 19. Red1 {[%clk 0:02:16]}  Kb8 {[%clk 0:02:17]} 20. a3 {[%clk 0:02:16]}  Qc7 {[%clk 0:02:08]} 21. Bc4 {[%clk 0:02:11]}  Rg7 {[%clk 0:01:50]} 22. R1d2 {[%clk 0:02:03]}  Qb6 {[%clk 0:01:41]} 23. Qf1 {[%clk 0:02:00]}  Kc7 {[%clk 0:01:33]} 24. Bb3 {[%clk 0:01:47]}  Rg4 {[%clk 0:01:31]} 25. Bxf7 {[%clk 0:01:42]}  a5 {[%clk 0:01:26]} 26. Bc4 {[%clk 0:01:39]}  Bc8 {[%clk 0:00:52]} 27. h3 {[%clk 0:01:35]}  Rf4 {[%clk 0:00:47]} 28. Rf3 {[%clk 0:01:22]}  Rxf3 {[%clk 0:00:42]} 29. gxf3 {[%clk 0:01:22]}  Bf8 {[%clk 0:00:35]} 30. Na4 {[%clk 0:01:17]}  Qa7 {[%clk 0:00:29]} 31. Rg2 {[%clk 0:01:14]}  d5 {[%clk 0:00:25]} 32. exd5 {[%clk 0:01:09]}  Bxf5 {[%clk 0:00:23]} 33. dxc6 {[%clk 0:01:02]}  Qd4 {[%clk 0:00:23]} 34. Nc3 {[%clk 0:01:02]}  Kxc6 {[%clk 0:00:19]} 35. Bb3 {[%clk 0:00:46]}  Rb8 {[%clk 0:00:12]} 36. Ba4+ {[%clk 0:00:42]}  Kb7 {[%clk 0:00:07]} 37. Qb5+ {[%clk 0:00:37]}  Qb6 {[%clk 0:00:07]} 38. Qd5+ {[%clk 0:00:38]}  Ka6 {[%clk 0:00:05]} 39. Bb5+ {[%clk 0:00:37]}  Ka7 {[%clk 0:00:05]} 40. a4 {[%clk 0:00:31]}  Qd4 {[%clk 0:00:03]} 41. Qc6 {[%clk 0:00:28]}  Qb6 {[%clk 0:00:03]} 42. Qc4 {[%clk 0:00:28]}  Qd4 {[%clk 0:00:03]} 43. Qf7+ {[%clk 0:00:29]}  Kb6 {[%clk 0:00:02]} 44. Qxf6+ {[%clk 0:00:23]}  Kc7 {[%clk 0:00:02]} 45. Qxf5 {[%clk 0:00:23]}  Rd8 {[%clk 0:00:03]} 46. Qe6 {[%clk 0:00:21]}  Bb4 {[%clk 0:00:02]} 47. Qc4+ {[%clk 0:00:20]}  Qxc4 {[%clk 0:00:02]} 48. Bxc4 {[%clk 0:00:20]}  Rb8 {[%clk 0:00:03]} 49. Nb5+ {[%clk 0:00:21]}  Kc6 {[%clk 0:00:03]} 50. Rg6+ {[%clk 0:00:21]}  Kc5 {[%clk 0:00:04]} 51. b3 {[%clk 0:00:22]}  Rd8 {[%clk 0:00:03]} 52. Bd3 {[%clk 0:00:22]}  Kd5 {[%clk 0:00:02]} 53. c3 {[%clk 0:00:22]}  Be7 {[%clk 0:00:02]} 54. Be4+ {[%clk 0:00:22]}  Kc5 {[%clk 0:00:02]} 55. Rc6# {[%clk 0:00:23]} 1-0


[Site "https://www.chess.com"]

[Event "Titled Tuesday Blitz January 10 Early 2023"]
[White "Gareyev, Timur"]
[Black "Lenderman, Aleksandr"]
[WhiteFideId "14200937"]
[BlackFideId "2021285"]
[WhiteElo "2617"]
[BlackElo "2572"]
[Result "1-0"]
[Round "06"]
[TimeControl "180+2"]
[Date "2023.01.10"]
[WhiteClock "0:00:05"]
[BlackClock "0:00:08"]

1. d4 {[%clk 0:02:46]}  e6 {[%clk 0:03:00]} 2. c4 {[%clk 0:02:42]}  b6 {[%clk 0:02:58]} 3. e4 {[%clk 0:02:42]}  Bb4+ {[%clk 0:02:57]} 4. Bd2 {[%clk 0:02:38]}  Bxd2+ {[%clk 0:02:56]} 5. Qxd2 {[%clk 0:02:39]}  d5 {[%clk 0:02:56]} 6. cxd5 {[%clk 0:02:34]}  exd5 {[%clk 0:02:57]} 7. e5 {[%clk 0:02:34]}  Ne7 {[%clk 0:02:57]} 8. Bd3 {[%clk 0:02:33]}  O-O {[%clk 0:02:57]} 9. Ne2 {[%clk 0:02:32]}  c5 {[%clk 0:02:57]} 10. O-O {[%clk 0:02:31]}  Nbc6 {[%clk 0:02:54]} 11. h3 {[%clk 0:02:07]}  cxd4 {[%clk 0:02:45]} 12. f4 {[%clk 0:02:06]}  Bf5 {[%clk 0:02:43]} 13. Na3 {[%clk 0:02:04]}  Qd7 {[%clk 0:02:38]} 14. Nc2 {[%clk 0:02:03]}  Rac8 {[%clk 0:02:35]} 15. Nexd4 {[%clk 0:02:01]}  Nxd4 {[%clk 0:02:36]} 16. Nxd4 {[%clk 0:02:01]}  Bxd3 {[%clk 0:02:34]} 17. Qxd3 {[%clk 0:02:02]}  Rc4 {[%clk 0:02:34]} 18. b3 {[%clk 0:01:56]}  Rc5 {[%clk 0:02:33]} 19. Rad1 {[%clk 0:01:55]}  Rfc8 {[%clk 0:02:30]} 20. f5 {[%clk 0:01:54]}  Rc3 {[%clk 0:02:17]} 21. e6 {[%clk 0:01:39]}  Qd6 {[%clk 0:02:06]} 22. Qe2 {[%clk 0:01:19]}  f6 {[%clk 0:02:04]} 23. Kh1 {[%clk 0:01:07]}  Qe5 {[%clk 0:01:55]} 24. Qf2 {[%clk 0:00:56]}  Re3 {[%clk 0:01:38]} 25. Nf3 {[%clk 0:00:50]}  Qe4 {[%clk 0:01:34]} 26. Nd2 {[%clk 0:00:23]}  Rxh3+ {[%clk 0:01:33]} 27. Kg1 {[%clk 0:00:23]}  Qg4 {[%clk 0:01:33]} 28. Rc1 {[%clk 0:00:20]}  Rhc3 {[%clk 0:01:28]} 29. Rxc3 {[%clk 0:00:20]}  Rxc3 {[%clk 0:01:29]} 30. Re1 {[%clk 0:00:18]}  h5 {[%clk 0:01:26]} 31. Nf1 {[%clk 0:00:18]}  h4 {[%clk 0:01:20]} 32. Nh2 {[%clk 0:00:18]}  Qg3 {[%clk 0:01:20]} 33. Nf3 {[%clk 0:00:16]}  Qxf2+ {[%clk 0:01:14]} 34. Kxf2 {[%clk 0:00:17]}  Rc2+ {[%clk 0:01:15]} 35. Kg1 {[%clk 0:00:17]}  Rxa2 {[%clk 0:01:13]} 36. Nxh4 {[%clk 0:00:17]}  Kf8 {[%clk 0:01:12]} 37. Rc1 {[%clk 0:00:15]}  d4 {[%clk 0:00:50]} 38. Rc7 {[%clk 0:00:16]}  Ra5 {[%clk 0:00:51]} 39. Rd7 {[%clk 0:00:15]}  Ke8 {[%clk 0:00:50]} 40. Ng6 {[%clk 0:00:13]}  Nxg6 {[%clk 0:00:44]} 41. fxg6 {[%clk 0:00:13]}  d3 {[%clk 0:00:36]} 42. Rxg7 {[%clk 0:00:12]}  Rg5 {[%clk 0:00:32]} 43. Rxa7 {[%clk 0:00:08]}  Rxg6 {[%clk 0:00:32]} 44. Rd7 {[%clk 0:00:08]}  Rg3 {[%clk 0:00:30]} 45. Kf2 {[%clk 0:00:07]}  Rg5 {[%clk 0:00:29]} 46. Rxd3 {[%clk 0:00:07]}  Rb5 {[%clk 0:00:30]} 47. Kf3 {[%clk 0:00:07]}  Ke7 {[%clk 0:00:30]} 48. Re3 {[%clk 0:00:07]}  Rb4 {[%clk 0:00:29]} 49. g4 {[%clk 0:00:06]}  Rd4 {[%clk 0:00:29]} 50. Kg3 {[%clk 0:00:07]}  b5 {[%clk 0:00:28]} 51. Kf3 {[%clk 0:00:06]}  b4 {[%clk 0:00:29]} 52. Kg3 {[%clk 0:00:07]}  Rd1 {[%clk 0:00:27]} 53. Kf4 {[%clk 0:00:07]}  Rc1 {[%clk 0:00:25]} 54. Kf5 {[%clk 0:00:05]}  Rc3 {[%clk 0:00:25]} 55. Kf4 {[%clk 0:00:03]}  Rc5 {[%clk 0:00:22]} 56. Re4 {[%clk 0:00:02]}  Rb5 {[%clk 0:00:22]} 57. Kf3 {[%clk 0:00:02]}  Rb6 {[%clk 0:00:22]} 58. Kf4 {[%clk 0:00:02]}  Rb8 {[%clk 0:00:22]} 59. Kf3 {[%clk 0:00:02]}  Rb7 {[%clk 0:00:21]} 60. Ke3 {[%clk 0:00:03]}  Rb8 {[%clk 0:00:21]} 61. Kd3 {[%clk 0:00:03]}  Rb7 {[%clk 0:00:17]} 62. Kc4 {[%clk 0:00:03]}  Rb8 {[%clk 0:00:18]} 63. Kc5 {[%clk 0:00:04]}  Rd8 {[%clk 0:00:05]} 64. Kxb4 {[%clk 0:00:04]}  Rd5 {[%clk 0:00:06]} 65. Kc4 {[%clk 0:00:04]}  Rg5 {[%clk 0:00:06]} 66. b4 {[%clk 0:00:04]}  Rg8 {[%clk 0:00:07]} 67. b5 {[%clk 0:00:04]}  Rc8+ {[%clk 0:00:07]} 68. Kb4 {[%clk 0:00:05]}  Rc1 {[%clk 0:00:08]} 69. b6 {[%clk 0:00:05]} 1-0


[Site "https://www.chess.com"]

[Event "Titled Tuesday Blitz January 10 Early 2023"]
[White "Boros, Denes"]
[Black "Vokhidov, Shamsiddin"]
[WhiteFideId "722340"]
[BlackFideId "14204223"]
[WhiteElo "2406"]
[BlackElo "2586"]
[Result "1/2-1/2"]
[Round "06"]
[TimeControl "180+2"]
[Date "2023.01.10"]
[WhiteClock "0:00:13"]
[BlackClock "0:00:05"]

1. Nf3 {[%clk 0:03:00]}  Nf6 {[%clk 0:03:00]} 2. Nc3 {[%clk 0:02:59]}  c5 {[%clk 0:02:59]} 3. d4 {[%clk 0:02:59]}  cxd4 {[%clk 0:02:55]} 4. Nxd4 {[%clk 0:03:00]}  d5 {[%clk 0:02:52]} 5. Bf4 {[%clk 0:03:00]}  Nc6 {[%clk 0:02:48]} 6. e4 {[%clk 0:02:55]}  dxe4 {[%clk 0:02:29]} 7. Ndb5 {[%clk 0:02:33]}  e5 {[%clk 0:02:24]} 8. Qxd8+ {[%clk 0:02:33]}  Kxd8 {[%clk 0:02:25]} 9. Bg5 {[%clk 0:02:24]}  a6 {[%clk 0:01:44]} 10. O-O-O+ {[%clk 0:02:18]}  Bd7 {[%clk 0:01:44]} 11. Nd6 {[%clk 0:02:05]}  Bxd6 {[%clk 0:01:43]} 12. Rxd6 {[%clk 0:02:06]}  Kc7 {[%clk 0:01:37]} 13. Rd2 {[%clk 0:02:03]}  Be6 {[%clk 0:01:28]} 14. Bxf6 {[%clk 0:01:56]}  gxf6 {[%clk 0:01:29]} 15. Nxe4 {[%clk 0:01:56]}  f5 {[%clk 0:01:29]} 16. Ng5 {[%clk 0:01:49]}  e4 {[%clk 0:01:21]} 17. Nxe6+ {[%clk 0:01:32]}  fxe6 {[%clk 0:01:22]} 18. Bc4 {[%clk 0:01:30]}  Rae8 {[%clk 0:01:21]} 19. Re1 {[%clk 0:01:25]}  Ne5 {[%clk 0:00:37]} 20. Bf1 {[%clk 0:01:22]}  Nd7 {[%clk 0:00:23]} 21. b3 {[%clk 0:01:14]}  Nf6 {[%clk 0:00:22]} 22. Kb2 {[%clk 0:01:13]}  Rd8 {[%clk 0:00:22]} 23. Rde2 {[%clk 0:01:10]}  Rd6 {[%clk 0:00:21]} 24. f3 {[%clk 0:01:10]}  Rhd8 {[%clk 0:00:20]} 25. fxe4 {[%clk 0:01:09]}  Nxe4 {[%clk 0:00:21]} 26. g3 {[%clk 0:01:09]}  Rd1 {[%clk 0:00:09]} 27. g4 {[%clk 0:00:56]}  Rxe1 {[%clk 0:00:08]} 28. Rxe1 {[%clk 0:00:57]}  Rd2 {[%clk 0:00:08]} 29. h4 {[%clk 0:00:46]}  Kd6 {[%clk 0:00:08]} 30. Bd3 {[%clk 0:00:42]}  Ke5 {[%clk 0:00:08]} 31. gxf5 {[%clk 0:00:29]}  exf5 {[%clk 0:00:08]} 32. Rg1 {[%clk 0:00:30]}  Rh2 {[%clk 0:00:07]} 33. Rg7 {[%clk 0:00:30]}  Rxh4 {[%clk 0:00:06]} 34. Rxb7 {[%clk 0:00:26]}  Nc5 {[%clk 0:00:07]} 35. Re7+ {[%clk 0:00:25]}  Kf6 {[%clk 0:00:06]} 36. Ra7 {[%clk 0:00:24]}  Nxd3+ {[%clk 0:00:06]} 37. cxd3 {[%clk 0:00:25]}  f4 {[%clk 0:00:07]} 38. Ra8 {[%clk 0:00:23]}  Kf5 {[%clk 0:00:05]} 39. Kc3 {[%clk 0:00:22]}  f3 {[%clk 0:00:05]} 40. Kd2 {[%clk 0:00:21]}  Kf4 {[%clk 0:00:05]} 41. Rf8+ {[%clk 0:00:19]}  Kg4 {[%clk 0:00:02]} 42. Ke3 {[%clk 0:00:19]}  Rh2 {[%clk 0:00:03]} 43. Rxf3 {[%clk 0:00:18]}  Rxa2 {[%clk 0:00:03]} 44. Rf4+ {[%clk 0:00:18]}  Kg5 {[%clk 0:00:03]} 45. Rf1 {[%clk 0:00:13]}  h5 {[%clk 0:00:03]} 46. Rg1+ {[%clk 0:00:13]}  Kf5 {[%clk 0:00:03]} 47. Rh1 {[%clk 0:00:13]}  Kg4 {[%clk 0:00:02]} 48. Rg1+ {[%clk 0:00:13]}  Kh4 {[%clk 0:00:02]} 49. d4 {[%clk 0:00:14]}  Rb2 {[%clk 0:00:02]} 50. Kf4 {[%clk 0:00:14]}  Rf2+ {[%clk 0:00:02]} 51. Ke3 {[%clk 0:00:13]}  Rf8 {[%clk 0:00:02]} 52. d5 {[%clk 0:00:13]}  Kh3 {[%clk 0:00:02]} 53. Ke4 {[%clk 0:00:13]}  Kh2 {[%clk 0:00:03]} 54. Rg5 {[%clk 0:00:13]}  h4 {[%clk 0:00:03]} 55. d6 {[%clk 0:00:14]}  h3 {[%clk 0:00:03]} 56. Kd5 {[%clk 0:00:14]}  Kh1 {[%clk 0:00:03]} 57. d7 {[%clk 0:00:14]}  h2 {[%clk 0:00:04]} 58. Kc6 {[%clk 0:00:13]}  a5 {[%clk 0:00:04]} 59. Kc7 {[%clk 0:00:13]}  a4 {[%clk 0:00:04]} 60. bxa4 {[%clk 0:00:13]}  Rc8+ {[%clk 0:00:04]} 61. Kd6 {[%clk 0:00:13]}  Rc6+ {[%clk 0:00:04]} 62. Ke7 {[%clk 0:00:12]}  Re6+ {[%clk 0:00:05]} 63. Kf7 {[%clk 0:00:12]}  Rf6+ {[%clk 0:00:05]} 64. Ke8 {[%clk 0:00:13]}  Rf8+ {[%clk 0:00:04]} 65. Ke7 {[%clk 0:00:13]}  Rf7+ {[%clk 0:00:05]} 66. Ke6 {[%clk 0:00:14]}  Rxd7 {[%clk 0:00:05]} 67. Kxd7 {[%clk 0:00:13]} 1/2-1/2


[Site "https://www.chess.com"]

[Event "Titled Tuesday Blitz January 10 Early 2023"]
[White "Bachmann, Axel"]
[Black "Preotu, Razvan"]
[WhiteFideId "3700488"]
[BlackFideId "2613280"]
[WhiteElo "2604"]
[BlackElo "2475"]
[Result "1-0"]
[Round "06"]
[TimeControl "180+2"]
[Date "2023.01.10"]
[WhiteClock "0:00:06"]
[BlackClock "0:00:02"]

1. e4 {[%clk 0:03:00]}  c5 {[%clk 0:02:59]} 2. Nf3 {[%clk 0:02:58]}  d6 {[%clk 0:03:00]} 3. d4 {[%clk 0:02:58]}  cxd4 {[%clk 0:03:00]} 4. Nxd4 {[%clk 0:02:58]}  Nf6 {[%clk 0:03:01]} 5. Nc3 {[%clk 0:02:58]}  a6 {[%clk 0:03:01]} 6. f4 {[%clk 0:02:48]}  e5 {[%clk 0:03:00]} 7. Nf3 {[%clk 0:02:48]}  Qc7 {[%clk 0:02:57]} 8. a4 {[%clk 0:02:44]}  Be7 {[%clk 0:02:52]} 9. Bd3 {[%clk 0:02:42]}  O-O {[%clk 0:02:52]} 10. O-O {[%clk 0:02:40]}  Nc6 {[%clk 0:02:48]} 11. Kh1 {[%clk 0:02:34]}  Nb4 {[%clk 0:02:47]} 12. Qe1 {[%clk 0:02:31]}  Be6 {[%clk 0:02:27]} 13. Nh4 {[%clk 0:02:24]}  Rfe8 {[%clk 0:01:25]} 14. fxe5 {[%clk 0:02:21]}  dxe5 {[%clk 0:01:26]} 15. Nf5 {[%clk 0:02:20]}  Bxf5 {[%clk 0:01:20]} 16. Rxf5 {[%clk 0:02:21]}  Rad8 {[%clk 0:01:20]} 17. Qg3 {[%clk 0:02:19]}  g6 {[%clk 0:01:13]} 18. Bh6 {[%clk 0:02:12]}  Nxd3 {[%clk 0:00:59]} 19. cxd3 {[%clk 0:02:11]}  Qb6 {[%clk 0:01:00]} 20. Raf1 {[%clk 0:01:52]}  Qxb2 {[%clk 0:00:59]} 21. Qxe5 {[%clk 0:01:18]}  Rxd3 {[%clk 0:00:28]} 22. Rxf6 {[%clk 0:00:26]}  Qxc3 {[%clk 0:00:28]} 23. Qxc3 {[%clk 0:00:21]}  Rxc3 {[%clk 0:00:29]} 24. Rxf7 {[%clk 0:00:22]}  Rcc8 {[%clk 0:00:26]} 25. Rg7+ {[%clk 0:00:19]}  Kh8 {[%clk 0:00:26]} 26. Rff7 {[%clk 0:00:20]}  Bf8 {[%clk 0:00:24]} 27. Rxh7+ {[%clk 0:00:13]}  Kg8 {[%clk 0:00:25]} 28. Bg5 {[%clk 0:00:09]}  Rxe4 {[%clk 0:00:23]} 29. h4 {[%clk 0:00:09]}  Rc2 {[%clk 0:00:11]} 30. Rxb7 {[%clk 0:00:07]}  Re1+ {[%clk 0:00:10]} 31. Kh2 {[%clk 0:00:07]}  Bd6+ {[%clk 0:00:07]} 32. Kh3 {[%clk 0:00:07]}  Rc3+ {[%clk 0:00:07]} 33. g3 {[%clk 0:00:05]}  Rxg3+ {[%clk 0:00:08]} 34. Kh2 {[%clk 0:00:05]}  Re2+ {[%clk 0:00:04]} 35. Kh1 {[%clk 0:00:06]}  Rh3+ {[%clk 0:00:05]} 36. Kg1 {[%clk 0:00:06]}  Bc5+ {[%clk 0:00:06]} 37. Kf1 {[%clk 0:00:06]}  Rf2+ {[%clk 0:00:06]} 38. Kg1 {[%clk 0:00:06]}  Rh1+ {[%clk 0:00:07]} 39. Kxh1 {[%clk 0:00:07]}  Rf1+ {[%clk 0:00:02]} 40. Kg2 {[%clk 0:00:06]} 1-0


[Site "https://www.chess.com"]

[Event "Titled Tuesday Blitz January 10 Early 2023"]
[White "Bryakin, Mikhail"]
[Black "Dominguez Perez, Leinier"]
[WhiteFideId "4165314"]
[BlackFideId "3503240"]
[WhiteElo "2455"]
[BlackElo "2739"]
[Result "1-0"]
[Round "06"]
[TimeControl "180+2"]
[Date "2023.01.10"]
[WhiteClock "0:00:06"]
[BlackClock "0:00:04"]

1. d4 {[%clk 0:02:57]}  d5 {[%clk 0:02:59]} 2. Nf3 {[%clk 0:02:57]}  Nf6 {[%clk 0:02:53]} 3. c4 {[%clk 0:02:55]}  dxc4 {[%clk 0:02:53]} 4. e3 {[%clk 0:02:55]}  e6 {[%clk 0:02:53]} 5. Bxc4 {[%clk 0:02:53]}  c5 {[%clk 0:02:53]} 6. O-O {[%clk 0:02:53]}  Nc6 {[%clk 0:02:53]} 7. dxc5 {[%clk 0:02:53]}  Qxd1 {[%clk 0:02:52]} 8. Rxd1 {[%clk 0:02:53]}  Bxc5 {[%clk 0:02:52]} 9. Be2 {[%clk 0:02:53]}  O-O {[%clk 0:02:51]} 10. b3 {[%clk 0:02:52]}  Be7 {[%clk 0:02:46]} 11. Bb2 {[%clk 0:02:51]}  b6 {[%clk 0:02:46]} 12. Nbd2 {[%clk 0:02:50]}  Bb7 {[%clk 0:02:46]} 13. Rac1 {[%clk 0:02:49]}  Rac8 {[%clk 0:02:45]} 14. Nc4 {[%clk 0:02:39]}  Rfd8 {[%clk 0:02:44]} 15. Kf1 {[%clk 0:02:32]}  Nb4 {[%clk 0:02:08]} 16. a3 {[%clk 0:02:06]}  Rxd1+ {[%clk 0:02:07]} 17. Rxd1 {[%clk 0:02:03]}  Nbd5 {[%clk 0:02:07]} 18. b4 {[%clk 0:01:42]}  Ne4 {[%clk 0:01:59]} 19. Rc1 {[%clk 0:01:27]}  f6 {[%clk 0:01:17]} 20. Nfd2 {[%clk 0:01:02]}  Nxd2+ {[%clk 0:01:04]} 21. Nxd2 {[%clk 0:01:03]}  Rxc1+ {[%clk 0:01:04]} 22. Bxc1 {[%clk 0:01:04]}  e5 {[%clk 0:00:58]} 23. Bc4 {[%clk 0:00:49]}  Kf8 {[%clk 0:00:56]} 24. Bb2 {[%clk 0:00:50]}  Ke8 {[%clk 0:00:48]} 25. g3 {[%clk 0:00:46]}  Kd7 {[%clk 0:00:40]} 26. e4 {[%clk 0:00:46]}  Nc7 {[%clk 0:00:38]} 27. Ke2 {[%clk 0:00:39]}  Ne6 {[%clk 0:00:33]} 28. h4 {[%clk 0:00:34]}  a6 {[%clk 0:00:31]} 29. Bc3 {[%clk 0:00:31]}  b5 {[%clk 0:00:30]} 30. Bb3 {[%clk 0:00:28]}  Bd8 {[%clk 0:00:29]} 31. Bc2 {[%clk 0:00:21]}  Bb6 {[%clk 0:00:29]} 32. Nf3 {[%clk 0:00:21]}  Ke7 {[%clk 0:00:28]} 33. Bd3 {[%clk 0:00:21]}  Bc8 {[%clk 0:00:28]} 34. Bb2 {[%clk 0:00:20]}  Nd8 {[%clk 0:00:27]} 35. Nd2 {[%clk 0:00:20]}  Nc6 {[%clk 0:00:27]} 36. Nb3 {[%clk 0:00:16]}  Be6 {[%clk 0:00:27]} 37. Nc5 {[%clk 0:00:16]}  Bxc5 {[%clk 0:00:26]} 38. bxc5 {[%clk 0:00:17]}  Kd7 {[%clk 0:00:22]} 39. f4 {[%clk 0:00:15]}  Bc4 {[%clk 0:00:09]} 40. Bxc4 {[%clk 0:00:08]}  bxc4 {[%clk 0:00:09]} 41. Kd2 {[%clk 0:00:09]}  Nd4 {[%clk 0:00:05]} 42. fxe5 {[%clk 0:00:06]}  fxe5 {[%clk 0:00:04]} 43. Kc3 {[%clk 0:00:06]} 1-0


[Site "https://www.chess.com"]